Cogmind - Beta 16.1 @@@ ROGUE MODE // 2026.04.23 @ 22:20:20 Player: Anting Result: Destroyed by as-39588 with Assembled Rifle Performance ------------- Evolutions (0) 0 Regions Visited (2) 400 Robots Destroyed (34) 170 Value Destroyed (659) 659 Prototype IDs (0) 0 Alien Tech Used (0) 0 Bonus (-10) -10 TOTAL SCORE: 1219 Bonus ------- Friendly Fire -10 Cogmind --------- Core Integrity 0/250 Matter 180/300 Energy 125/125 System Corruption 2% Temperature Cool (0) Movement Treading (320) Ox2 Location -10/Mines Parts ------- > --- POWER (1) -------- Light Ion Engine > --- PROPULSION (2) --- Light Treads Light Treads > --- UTILITY (2) ------ Huge Storage Unit Seismic Detector > --- WEAPON (2) ------- EM Shotgun Rocket Launcher > --- INVENTORY (25) --- Light Treads VTOL Module VTOL Module VTOL Module VTOL Module Medium Storage Unit Seismic Detector Hardened Light Armor Plating Hardened Light Armor Plating Hardened Light Armor Plating Hardened Light Armor Plating Hacking Suite Hacking Suite Authchip [Propulsion] Authchip [Device] Authchip [Storage] Authchip [Weapon] EM Shotgun EM Shotgun Light EM Pulse Cannon Light EM Pulse Cannon Light EM Pulse Cannon Assault Rifle Datajack Peak State ------------ > --- POWER ------------ Light Ion Engine > --- PROPULSION ------- Light Treads Light Treads > --- UTILITY ---------- Improved Heat Sink Huge Storage Unit > --- WEAPON ----------- Light EM Pulse Cannon Assault Rifle > --- INVENTORY -------- Light Treads VTOL Module VTOL Module VTOL Module VTOL Module Medium Storage Unit Seismic Detector Hardened Light Armor Plating Hardened Light Armor Plating Hardened Light Armor Plating Hardened Light Armor Plating Hacking Suite Hacking Suite Authchip [Propulsion] Authchip [Device] Authchip [Weapon] EM Shotgun EM Shotgun EM Shotgun EM Shotgun Light EM Pulse Cannon Light EM Pulse Cannon Grenade Launcher Datajack [Rating: 15] Favorites ----------- Power Light Ion Engine Engine Light Ion Engine Propulsion Aluminum Leg Treads Light Treads Leg Aluminum Leg Utility Seismic Detector Device Seismic Detector Storage Large Storage Unit Weapon EM Shotgun Energy Gun EM Shotgun Energy Cannon Light EM Pulse Cannon Ballistic Gun Assault Rifle Launcher Rocket Launcher Build | -11 -10 -10 ------- Run | Yrd Mat Min Slots Evolved . | . . . Power . | . . . Propulsion . | . . . Utility . | . . . Weapon . | . . . Parts Attached 27 | 7 17 3 Power 2 | 1 1 . Engine 2 | 1 1 . Core . | . . . Reactor . | . . . Propulsion 8 | 2 6 . Treads 2 | . 2 . Leg 6 | 2 4 . Wheel . | . . . Hover . | . . . Flight . | . . . Utility 5 | 2 3 . Device 2 | 1 1 . Storage 3 | 1 2 . Processor . | . . . Hackware . | . . . Protection . | . . . Artifact . | . . . Weapon 12 | 2 7 3 Energy Gun 6 | 1 4 1 Energy Cannon 2 | . 2 . Ballistic Gun 2 | 1 1 . Ballistic Cannon . | . . . Launcher 2 | . . 2 Special Weapon . | . . . Impact Weapon . | . . . Slashing Weapon . | . . . Piercing Weapon . | . . . Special Melee Weapon . | . . . Unidentified Prototypes . | . . . Parts Lost 2 | . 1 1 Power . | . . . Propulsion . | . . . Utility . | . . . Weapon 2 | . 1 1 Highest Loss Streak 1 | . 1 1 To Critical Strikes . | . . . Average Backups 16 | 3 15 24 Power . | . . . Propulsion 5 | 1 5 5 Utility 4 | . 4 12 Weapon 5 | . 5 6 Tool/Special . | . . . Unused Backups 25 | 1 3 21 Power . | . . . Propulsion 7 | 1 1 5 Utility 13 | . 1 12 Weapon 4 | . 1 3 Tool/Special 1 | . . 1 Average Slot Usage (%) 99 | . 99 100 Engine 14 | . 14 14 Treads 3 | . 1 28 Leg 24 | . 26 . Device 13 | . 13 14 Storage 14 | . 14 14 Energy Gun 17 | . 17 25 Energy Cannon 2 | . 2 . Ballistic Gun 8 | . 8 . Peak Build Rating 15 | 7 15 14 Average Rating 10 | 5 10 13 On Entrance 6 | . 7 13 Avg Prop Armor Cover (%) . | . . . Naked Turns . | . . . Heaviest Build 92 | 12 92 90 Greatest Support 40 | 20 40 40 Greatest Overweight (x) 4 | 2 4 2 Average Overweight (x) 1 | . 1 2 Largest Inventory Capacity 25 | 8 25 25 Average Capacity 17 | 7 17 25 Most Carried 25 | 4 25 25 Average Carried 16 | 3 15 24 Final Capacity 25 | 8 25 25 Final Carried 25 | 4 25 24 Class Distribution -------------------- 88% | Mutant 11% | Scavenger-Mutant Dominant Class ---------------- Mutant | -10/Materials Mutant | -10/Mines Resources | -11 -10 -10 ----------- Run | Yrd Mat Min Matter Collected 839 | 287 498 54 Remotely . | . . . Salvage Created 999 | 94 848 57 Parts 64 | 12 43 9 Haulers Intercepted 2 | . 2 . Recyclers Shooed 2 | 1 1 . Parts Field Recycled . | . . . Retrieved Matter . | . . . Parts Self-Destructed . | . . . Prevented . | . . . Parts Restored . | . . . Kills | -11 -10 -10 ------- Run | Yrd Mat Min Combat Hostiles Destroyed 23 | . 15 8 Guns 14 | . 14 . Cannons 1 | . 1 . AOE 8 | . . 8 Classes Destroyed 8 | 1 6 1 Tunneler 7 | 5 . 2 Hauler 2 | . 2 . Recycler 1 | . 1 . Operator 3 | . 3 . Watcher 3 | . 3 . Swarmer 6 | . 3 3 Grunt 12 | . 12 . Assembled 5 | . . 5 Best Kill Streak 5 | 4 3 5 Combat Bots Only 5 | . 3 5 Max Kills in Single Turn 2 | 1 1 2 Gunslinging . | . . . Exploded 2 | . . 2 Melee . | . . . Uniques/NPCs Destroyed . | . . . Combat | -11 -10 -10 -------- Run | Yrd Mat Min Hostile Shots Fired 98 | . 75 23 Missed 29 | . 20 9 Hits 69 | . 55 14 Projectile 69 | . 55 14 AOE 7 | . . 7 Critical Strikes 2 | . 2 . Damage Taken 972 | . 598 374 Core 253 | . 104 149 Absorbed by Shields . | . . . Regen/Repaired (Parts) 15 | . 15 . Core Remaining (%) 100 | 100 . . Volleys Fired 101 | 9 81 11 Largest 2 | 2 2 2 Hottest 112 | 60 112 90 Shots Fired 184 | 18 151 15 Gun 173 | 18 149 6 Cannon 2 | . 2 . Launcher 9 | . . 9 Special . | . . . Kinetic 79 | 9 70 . Thermal 68 | 9 59 . Explosive 9 | . . 9 Electromagnetic 28 | . 22 6 Robot Hit Streak 21 | 4 21 5 Robot Miss Streak 5 | 3 5 2 Penetration Max . | . . . Secondary Targets 3 | . 3 . Max Gunslinging Chain 1 | . 1 . Shots Hit Robots 119 | 9 103 7 Core Hits 67 | 5 45 17 Critical Kills . | . . . Critical Parts Destroyed . | . . . Critical Strikes 1 | . 1 . Burn 1 | . 1 . Melee Attacks . | . . . Impact . | . . . Slashing . | . . . Piercing . | . . . Sneak Attacks . | . . . Combat Hostiles . | . . . Follow-up Attacks . | . . . Damage Inflicted 2097 | 103 1507 487 Guns 1586 | 102 1424 60 Cannons 25 | . 25 . Explosions 432 | . 34 398 Melee . | . . . Ramming 54 | 1 24 29 Kinetic 595 | 58 537 . Thermal 715 | 44 671 . Explosive 398 | . . 398 Electromagnetic 335 | . 275 60 Impact . | . . . Slashing . | . . . Piercing . | . . . Highest Corruption 2 | . 2 2 Average Corruption 1 | . 1 2 Corruption Purged . | . . . Corruption Blocked . | . . . Effects 18 | . 12 6 Message Errors 3 | . 2 1 Matter Fused 3 | . 2 1 Heat Flow Errors 2 | . 2 . Energy Discharges 2 | . 2 . Data Loss (minor) 5 | . 4 1 Data Loss (major) 1 | . . 1 Misfires 2 | . . 2 Overload Shots . | . . . Overflow Damage . | . . . Projectiles . | . . . Explosions . | . . . Melee . | . . . Knockbacks . | . . . Impact . | . . . Kinetic . | . . . Secondary . | . . . Self-Inflicted Damage 12 | . . 12 Shots 1 | . . 1 Rammed 2 | . 1 1 Targets Rammed 8 | 1 5 2 Kicked 5 | 1 4 . Crushed 1 | . . 1 Highest Temperature 265 | . 265 40 Average Temperature 50 | . 53 15 Received Heat Transfer 291 | . 291 . Siege Activations . | . . . Martial Activations . | . . . Shielding Activations . | . . . Robots Disrupted . | . . . Combat Hostiles . | . . . Robots Corrupted . | . . . Combat Hostiles . | . . . Parts Fried 4 | . 4 . Impact Corruptions . | . . . Robots Melted . | . . . Combat Hostiles . | . . . Parts Melted 1 | . 1 . Heat Transferred 1711 | 100 1611 . Parts Sabotaged . | . . . Parts Stolen . | . . . Parts Stripped . | . . . Power Chain Reactions 1 | . 1 . Alert | -11 -10 -10 ------- Run | Yrd Mat Min Maximum Alert Level . | . . . Low Security (%) 100 | 100 100 100 Level 1 . | . . . Level 2 . | . . . Level 3 . | . . . Level 4 . | . . . Level 5 . | . . . High Security . | . . . Max Security . | . . . Peak Influence 185 | 15 185 150 Initial 51 | . . 51 Average 85 | 2 88 82 Influence Increases 711 | 25 563 123 Destroy 0b10 Robot/C 360 | . 300 60 Destroy 0b10 Robot/NC 80 | 25 45 10 Destroy Leader 90 | . 80 10 Successful Hack 18 | . 18 . Select Force Hacks 60 | . 60 . Disable Machine 15 | . . 15 Destroy Structure 28 | . . 28 Lose Combat Pursuer 60 | . 60 . Influence Decreases 697 | 25 431 241 Entered New Map 81 | . . 81 Time Decay 596 | 25 421 150 Lost Part 20 | . 10 10 Squads Dispatched 5 | . 5 . Investigation 3 | . 3 . Extermination . | . . . Reinforcement 2 | . 2 . Assault . | . . . Garrison . | . . . Intercept . | . . . Searches Triggered . | . . . Construction Impeded . | . . . Haulers Reinforced . | . . . Active Scanning Responses . | . . . Cargo Convoy Interrupts . | . . . Stealth | -11 -10 -10 --------- Run | Yrd Mat Min Distress Signals 3 | . 3 . Communications Jammed . | . . . Distress Signals . | . . . Times Spotted 47 | . 33 14 Peak Tracking Total 4 | . 3 4 Tactical Retreats 3 | . 3 . Traps | -11 -10 -10 ------- Run | Yrd Mat Min Traps Triggered 3 | . 3 . Indirectly . | . . . Trap Hack Attempts . | . . . Triggered . | . . . Disarmed . | . . . Reprogrammed . | . . . Reused . | . . . Traps Extracted . | . . . Installed . | . . . Triggered . | . . . Machines | -11 -10 -10 ---------- Run | Yrd Mat Min Machines Disabled 1 | . . 1 Max in Single Turn 1 | . . 1 Machines Repaired . | . . . Machines Dismantled . | . . . Machines Sabotaged . | . . . Overloaded Fab Kills . | . . . Hacking | -11 -10 -10 --------- Run | Yrd Mat Min Machines Accessed 9 | . 9 . Terminals 6 | . 6 . Fabricators . | . . . Repair Stations 1 | . 1 . Recycling Units 2 | . 2 . Scanalyzers . | . . . Garrison Access . | . . . Total Hacks 21 | . 21 . Successful 13 | . 13 . Failed 8 | . 8 . Catastrophic 2 | . 2 . Database Lockouts . | . . . Manual 18 | . 18 . Terminals 17 | . 17 . Fabricators . | . . . Repair Stations 2 | . 2 . Recycling Units 2 | . 2 . Scanalyzers . | . . . Garrison Access . | . . . Terminal Hacks 2 | . 2 . Part Schematic 1 | . 1 . Robot Schematic 1 | . 1 . Fabricator Hacks . | . . . Repair Station Hacks 2 | . 2 . Scan Component 1 | . 1 . Repair 1 | . 1 . Recycling Unit Hacks . | . . . Scanalyzer . | . . . Garrison Access Hacks . | . . . Unauthorized Hacks 9 | . 9 . Terminals 7 | . 7 . Operators 2 | . 2 . Skim 5 | . 5 . Fabricators . | . . . Repair Stations . | . . . Recycling Units 2 | . 2 . Tunnel 2 | . 2 . Scanalyzers . | . . . Garrison Access . | . . . Data Cores Recovered . | . . . Used . | . . . Hacking Detections 6 | . 6 . Full Trace Events . | . . . Feedback Events . | . . . Feedback Blocked . | . . . Robot Schematics Acquired 1 | . 1 . Robots Built . | . . . Authchips . | . . . Time . | . . . Total Robot Build Rating . | . . . Part Schematics Acquired 1 | . 1 . Parts Built . | . . . Authchips . | . . . Time . | . . . Total Part Build Rating . | . . . Part Studies Acquired . | . . . Parts Repaired 1 | . 1 . Time 26 | . 26 . Parts Recycled . | . . . Recycled Matter . | . . . Retrieved Matter . | . . . Retrieved Components . | . . . Parts Scanalyzed . | . . . Part Schematics Acquired . | . . . Parts Damaged . | . . . Bothacking | -11 -10 -10 ------------ Run | Yrd Mat Min Used RIF Installer . | . . . Robots Hacked . | . . . Non-combat . | . . . Combat . | . . . Robot Hacks Applied . | . . . Relay Couplers Released . | . . . Fabnet Peak Effective % . | . . . Robots Rewired . | . . . Allies Hacked . | . . . Hacks Repelled . | . . . Allies | -11 -10 -10 -------- Run | Yrd Mat Min Total Allies . | . . . Largest Group . | . . . Highest-Rated Group . | . . . Highest-Rated Ally . | . . . Total Orders . | . . . Ally Attacks . | . . . Total Damage . | . . . Kills . | . . . Allies Corrupted . | . . . Allies Melted . | . . . Intel | -11 -10 -10 ------- Run | Yrd Mat Min Active Infowar (turns) 4231 | 28 3893 310 Seismic 4231 | 28 3893 310 Robot Analysis Total . | . . . Derelict Logs Recovered . | . . . Drone Launches . | . . . Drone Recoveries . | . . . Exploration | -11 -10 -10 ------------- Run | Yrd Mat Min Turns Passed 4524 | 125 4089 310 Spaces Moved 1175 | 68 1022 85 Core 8 | 8 . . Treads 146 | . 61 85 Legs 1021 | 60 961 . Wheels . | . . . Hover . | . . . Flight . | . . . Fastest Speed 50 | 50 120 320 Average Speed 230 | 119 230 320 Slowest Speed 400 | 150 400 320 Overloaded Moves . | . . . Propulsion Burnouts . | . . . Robots Hopped . | . . . Potential Cave-ins . | . . . Cave-ins Triggered . | . . . Exploration Rate (%) 41 | 4 95 26 Regions Visited 2 Branch Regions 1 Pre-discovered Areas 3 | . 3 . Known Exits Taken . | . . . Unknown Exits Taken 2 | 1 1 . Scrap Searched 1 | . . 1 Spaces Dug 23 | . . 23 Terrain Destroyed 46 | . . 46 Melee . | . . . Projectile . | . . . AOE 46 | . . 46 Terrain Rammed . | . . . Walls Destroyed . | . . . Machines Disabled . | . . . Actions | -11 -10 -10 --------- Run | Yrd Mat Min Total 2791 | 90 2596 105 Wait 1403 | . 1403 . Move 1173 | 67 1021 85 Hop . | . . . Pick Up 40 | 5 34 1 Fast Attach 11 | 7 4 . Attach 6 | . 5 1 Detach 1 | . 1 . Swap 26 | . 22 4 Drop 22 | 1 20 1 Fire 101 | 9 81 11 Melee . | . . . Ram . | . . . Kick 5 | 1 4 . Crush 3 | . 1 2 Escape Stasis . | . . . Rewire . | . . . Trap . | . . . Miscellaneous . | . . . Route ------- -11/Scrapyard -10/Materials (discovered 6 exits: [*Mat x3] / [*Min x2] / Sub) -10/Mines (discovered 2 exits: [*Mat x2]) History --------- Turn | Location | Event 16 | -11/Scrapyard | Discovered new exit (range 15) 126 | -11/Scrapyard | Entered Materials 167 | -10/Materials | Discovered new exit (range 16) 309 | -10/Materials | Build established: Mutant 312 | -10/Materials | Discovered new exit (range 11) 1131 | -10/Materials | Discovered new exit (range 15) 1203 | -10/Materials | Repaired Seismic Detector 1995 | -10/Materials | Build established: Scavenger-Mutant 2234 | -10/Materials | Discovered new exit (range 8) 2417 | -10/Materials | Learned location of Storage (-7) 2479 | -10/Materials | Build established: Mutant 2542 | -10/Materials | Identified exit to Subcaves 2588 | -10/Materials | Learned 2 Mines zone layouts 2623 | -10/Materials | Learned Storage trap positions 2650 | -10/Materials | Learned location of 2 exits from Subcaves 2688 | -10/Materials | Learned 2 Storage zone layouts 2735 | -10/Materials | Learned Recycling recycling unit intel 3206 | -10/Materials | Discovered new exit (range 16) 4215 | -10/Materials | Entered Mines 4217 | -10/Mines | Discovered new exit (range 6) 4295 | -10/Mines | Received a Rocket Launcher from a helpful Derelict 4487 | -10/Mines | Discovered new exit (range 16) 4491 | -10/Mines | Assembled infested the area 4496 | -10/Mines | Assisted by a Guerilla fighting off Assembled 4500 | -10/Mines | Core integrity fell below 50% 4500 | -10/Mines | Core integrity fell below 20% 4525 | -10/Mines | Destroyed by as-39588 with Assembled Rifle Last Messages --------------- 04499_ HV Slug penetrates Wall. 04500_ U-05 Engineer builds a Wall. 04501_ HV Slug penetrates Wall. 04502_ EM Shotgun destroyed. 04502_ OX-4X0(h) destroyed. 04504_ U-05 Engineer lays Concrete. 04504_ D-53 Grenadier destroyed. 04504_ K-01 Serf destroyed. 04504_ U-05 Engineer destroyed. 04505_ D-53 Grenadier destroyed. 04508_ The unstable cave ceiling collapses. 04511_ as-06016 destroyed. 04512_ The unstable cave ceiling collapses. 04512_ K-01 Serf destroyed. 04515_ U-05 Engineer lays Concrete. 04515_ as-83174 destroyed. 04515_ as-60704 destroyed. 04516_ U-05 Engineer builds a Wall. 04517_ as-71960 destroyed. 04518_ The unstable cave ceiling collapses. Map ----- +----------------------------------------------------+ | ?????????????????????????????????????????????????? | | ?????????????????????????????????????????????????? | | ?????????????????????????????????????????????????? | | ?????????????????????????????????????????????????? | | ?????????????????????????????????????????????????? | | ????????????????????????????????????????????????? | | ????????????????????????????????????????????????# | | ??????????????????????????????????? ???????????# | | ????????????????????????????????? ??????????# | | ????????????????????????????????? ??????????# | | ???????????????????????????????? ????????## | | ?????????????????????????????????? ????????# | | ??????????????????????????????????? #???????# | | ???????????????????????????????????? #??????# | | ?????????????????????????????????????# ?????## | | ?????????????????????????###??????????# #?#### | | ????????????? #####?????? #??????????# ## | | ???????????? ?????# #??????????# | | ???????????? ????# ;???????????# | | ???????????? ##### #####????????# | | ??????????? # ## ########### | | ??????????? <* # # | | ?????????? = a * ]! [ ## | | ?????????? a # # # ### < ##### #? | | ?????????? a # ###* ##???# # #? | | ?????????????# @ # #?# ##????## ## #? | | ?????????????# #?# #####??##### #? | | ?????????? a ] #### # ##?????# #? | | ??????????? = # ## #?????# ## | | ??????????? ## ! ## ## #?????# ! | | ????????????# ???#### # ### # " #?????####= | | ????????????????????# ##??# # " #????????# | | ????????????????????## #???# # % "" ##??####?## | | ?????????????????????# #???# ## #??## ### | | ?????????????????????# #???# ##### # ##?## | | ????????????????????## #???# #?##### #?## | | ???????????????????## ##??# #?????# ### | | ???????????????????# ##?# #????## ] | | ??????????????????? ### #????# | | ??????????????????? """ ## ###??## ### | | ??????????????????? """ #########?###### # | | ??????????????????? """ ## ##????????# ## | | ??????????????????? #????????# #? | | ??????????????????? #???###### ## | | ??????????????????? ##???# | | ??????????????????? ## ### ##????# | | ??????????????????? #######?####?????## | | ???????????????????## ##?????????????????#### | | ????????????????????####?????????????????????##### | | ?????????????????????????????????????????????????? | +----------------------------------------------------+ Best States ------------- Heat Dissipation 39 Energy Generation 10 Energy Capacity 125 Matter Stores 300 Matter Capacity 300 Sight Range 16 Terrain Scan Density 10 Evasion (%) 55 Recoil Reduction 2 Authchip Count 4 Item Schematics ----------------- Hcp. Storage Unit | -10/Materials | Hacked Robot Schematics ------------------ M-13 Machinist | -10/Materials | Hacked Fabricated ------------ Nothing Repaired ---------- Seismic Detector | 25% | -10/Materials Studied --------- None Alien Tech Used ----------------- None Achievements -------------- None Challenges ------------ None Game ------ Seed BlastDerelictMegashotty Manual? 0 Play Time 00:18:20 Cumulative 445.0 hours Start 2026.04.23 @ 22:03:19 End 2026.04.23 @ 22:20:20 Sessions 1 Manual Loads 0 Difficulty Rogue Special Mode None Game No. 292 Rogue 292 Adventurer 0 Explorer 0 Win Type - Total 29 Types 10/0/9/1/1/0/3/2/2/1 Lore% 84 Gallery% 78 Achievement% 73 Wizard Run 0 Options --------- Layout 1 ASCII 0 Keyboard 0 Movement Mouse Keybinds 0 Fullscreen 2 Font 24/Smallcaps Map View 50x35 Zoom Use 0% Tactical HUD 1 Map Filters NONE Filters NONE Steam 1 RUN: 85af96f6-4201-47be-a92d-8460a087d017